{"text_format":"3","workbook":"xlsx","n_sheets":7,"sheets":["COMECE AQUI - LEIA ATENTAMENTE ","INSTRUÇÕES DE USO","DIMENSIONAMENTO","PRODUCT DATA","CALC.","RESULTADO","Versions Log"],"not_rendered":{"images":11},"read":"whole","date_system":"1900"}

{"sheet":"COMECE AQUI - LEIA ATENTAMENTE ","index":0,"n_rows":6,"n_cols":13,"rows_kept":6,"merged":[[0,1,2,21],[4,1,4,10],[4,12,4,21],[5,1,18,10],[5,12,18,21]]}
[null,"CALCULADORA BACKUP FOX ESS"]
[]
[]
[]
[null,"TERMOS DE USO E RECOMENDAÇÕES",{"$nulls":10},"OS CÁLCULOS DESTE ARQUIVO NÃO CONSIDERAM:"]
[null,"A Calculadora de Backup da Fox ESS foi desenvolvida para auxiliar, de forma educativa, no pré-dimensionamento de soluções de backup de energia. Ressaltamos que os resultados gerados são apenas estimativas e não substituem um projeto técnico profissional. A Fox ESS não se responsabiliza por eventuais inadequações decorrentes do uso desta ferramenta. Para garantir que o sistema atenda plenamente às suas demandas, é indispensável a análise de um engenheiro ou especialista qualificado. Ter um sistema híbrido bem dimensionado é essencial para manter a continuidade de energia em aplicações residenciais, comerciais e industriais.\nA autonomia máxima considerada nesta ferramenta é de 24h.",{"$nulls":10},"- Alimentação das cargas por outras fontes (Ex. Fotovoltaico/Solar, Gerador Diesel, Etc);\n   \n- Coeficiente de simultaniedade das cargas (A planilha considera tudo ligado ao mesmo tempo);\n   \n- Tempo necessário e Corrente Recomendada para recarga das baterias."]

{"sheet":"INSTRUÇÕES DE USO","index":1,"n_rows":6,"n_cols":2,"rows_kept":6,"merged":[[0,1,2,10],[4,1,4,10],[5,1,18,10]]}
[null,"CALCULADORA BACKUP FOX ESS"]
[]
[]
[]
[null,"INSTRUÇÕES"]
[null,"Para o uso desta planilha, é extremamente importante que seja feito um levantamento prévio das cargas que serão alimentadas pelo sistema.\n\n1 - A planilha é previamente preenchida com dados de exemplo que devem ser alterados de acordo com os dados do cliente.\n2 - Na aba de Dimensionamento, selecione dentre as opções disponíveis, o tempo de autonomia desejado pelo cliente\n3 - Selecione o Tipo de Rede do cliente dentre as opções disponíveis.\n4 - Preencha a Lista de Equipamentos  nos campos editáveis (em roxo), de acordo com o levantamento feito. Ajuste os nomes dos aparelhos, potências, quantidades, o tempo de uso, o Fator de Potênica (FP -  cargas 100% reativas como Notebook e Roteador tem FP = 1) e a Corrente de Pico (Ip/In) conforme necessário.\nNOTA1: As células que ficarem amarelas e/ou vermelhas, servem como um mero indicativo de potência mais alta (acima de 1kW) ou consumo alto (acima de 5 kWh).\n5 - Após todas as informações preenchidas, a planilha apresenta na aba RESULTADO, o modelo de inversor e a quantidade sugerida, assim como a quantidade de baterias recomendadas no total. Agora é só conferir o kit com o distribuidor de sua preferência e ser feliz com a Fox ESS!\n\nNOTA2: Por padrão, a planilha considera DoD (Profundidade de Descarga) das baterias de 90%, e eficiência de 95%. A eficiência dos inversores varia conforme modelo.\n\nNOTA3: A calculadora considera o balanceamento das baterias por inversor (todos inversores devem ter a mesma quantidade de baterias entre si).\n\nLEMBRE-SE: Essa calculadora foi desenvolvida para auxiliar no pré-dimensionamento de soluções de backup de energia e ressaltamos que os resultados gerados são apenas estimativas e não substituem um projeto técnico profissional. Para garantir que o sistema atenda plenamente às suas demandas, é indispensável a análise de um engenheiro ou especialista qualificado. A Fox-ESS não se responsabiliza por eventuais inadequações decorrentes do uso desta ferramenta.\n"]

{"sheet":"DIMENSIONAMENTO","index":2,"n_rows":27,"n_cols":11,"rows_kept":27,"merged":[[0,1,3,11]]}
[null,"CALCULADORA BACKUP FOX ESS"]
[]
[]
[]
[null,null,"Campos Editáveis"]
[null,"Autonomia  ( Horas)",2]
[null,"Tipo de rede do Cliente:","Bifásica (127/220 V)"]
[null,"Aparelho","Potência Nominal [W]","Tensão Nominal [V]","Quantidade","Tempo Ligado [h]","FP","Ip/In","Potência Total [W]","Potência de Pico [kW]","Consumo diário [Wh]"]
[1,"Laptop",100,220,2,24,{"v":1,"d":"1.0"},{"v":1,"d":"1.0"},{"$f":"IFERROR(IF(Equipmentos[[#This Row],[Quantidade]]=\"\",\"\",Equipmentos[[#This Row],[Potência Nominal '[W']]]*Equipmentos[[#This Row],[Quantidade]]/IF(Equipmentos[[#This Row],[Potência Nominal '[W']]]=\"\",1,Equipmentos[[#This Row],[FP]])),\"\")","v":200},{"$f":"IF(Equipmentos[[#This Row],[Potência Nominal '[W']]]=\"\",0,Equipmentos[[#This Row],[Potência Total '[W']]]*Equipmentos[[#This Row],[Ip/In]])","v":200},{"$f":"IFERROR(IF(Equipmentos[[#This Row],[Quantidade]]=\"\",\"\",Equipmentos[[#This Row],[Potência Total '[W']]]*Equipmentos[[#This Row],[Tempo Ligado '[h']]]),\"\")","v":4800}]
[2,"Modem / Wifi / Internet",20,220,1,24,{"v":1,"d":"1.0"},{"v":1,"d":"1.0"},{"$f":"IFERROR(IF(Equipmentos[[#This Row],[Quantidade]]=\"\",\"\",Equipmentos[[#This Row],[Potência Nominal '[W']]]*Equipmentos[[#This Row],[Quantidade]]/IF(Equipmentos[[#This Row],[Potência Nominal '[W']]]=\"\",1,Equipmentos[[#This Row],[FP]])),\"\")","v":20},{"$f":"IF(Equipmentos[[#This Row],[Potência Nominal '[W']]]=\"\",0,Equipmentos[[#This Row],[Potência Total '[W']]]*Equipmentos[[#This Row],[Ip/In]])","v":20},{"$f":"IFERROR(IF(Equipmentos[[#This Row],[Quantidade]]=\"\",\"\",Equipmentos[[#This Row],[Potência Total '[W']]]*Equipmentos[[#This Row],[Tempo Ligado '[h']]]),\"\")","v":480}]
[3,"Impressora",50,220,1,0,{"v":1,"d":"1.0"},{"v":1,"d":"1.0"},{"$f":"IFERROR(IF(Equipmentos[[#This Row],[Quantidade]]=\"\",\"\",Equipmentos[[#This Row],[Potência Nominal '[W']]]*Equipmentos[[#This Row],[Quantidade]]/IF(Equipmentos[[#This Row],[Potência Nominal '[W']]]=\"\",1,Equipmentos[[#This Row],[FP]])),\"\")","v":50},{"$f":"IF(Equipmentos[[#This Row],[Potência Nominal '[W']]]=\"\",0,Equipmentos[[#This Row],[Potência Total '[W']]]*Equipmentos[[#This Row],[Ip/In]])","v":50},{"$f":"IFERROR(IF(Equipmentos[[#This Row],[Quantidade]]=\"\",\"\",Equipmentos[[#This Row],[Potência Total '[W']]]*Equipmentos[[#This Row],[Tempo Ligado '[h']]]),\"\")","v":0}]
[4,"Luzes",15,220,10,6,{"v":1,"d":"1.0"},{"v":1,"d":"1.0"},{"$f":"IFERROR(IF(Equipmentos[[#This Row],[Quantidade]]=\"\",\"\",Equipmentos[[#This Row],[Potência Nominal '[W']]]*Equipmentos[[#This Row],[Quantidade]]/IF(Equipmentos[[#This Row],[Potência Nominal '[W']]]=\"\",1,Equipmentos[[#This Row],[FP]])),\"\")","v":150},{"$f":"IF(Equipmentos[[#This Row],[Potência Nominal '[W']]]=\"\",0,Equipmentos[[#This Row],[Potência Total '[W']]]*Equipmentos[[#This Row],[Ip/In]])","v":150},{"$f":"IFERROR(IF(Equipmentos[[#This Row],[Quantidade]]=\"\",\"\",Equipmentos[[#This Row],[Potência Total '[W']]]*Equipmentos[[#This Row],[Tempo Ligado '[h']]]),\"\")","v":900}]
[5,"TV",68,220,1,4,{"v":1,"d":"1.0"},{"v":1,"d":"1.0"},{"$f":"IFERROR(IF(Equipmentos[[#This Row],[Quantidade]]=\"\",\"\",Equipmentos[[#This Row],[Potência Nominal '[W']]]*Equipmentos[[#This Row],[Quantidade]]/IF(Equipmentos[[#This Row],[Potência Nominal '[W']]]=\"\",1,Equipmentos[[#This Row],[FP]])),\"\")","v":68},{"$f":"IF(Equipmentos[[#This Row],[Potência Nominal '[W']]]=\"\",0,Equipmentos[[#This Row],[Potência Total '[W']]]*Equipmentos[[#This Row],[Ip/In]])","v":68},{"$f":"IFERROR(IF(Equipmentos[[#This Row],[Quantidade]]=\"\",\"\",Equipmentos[[#This Row],[Potência Total '[W']]]*Equipmentos[[#This Row],[Tempo Ligado '[h']]]),\"\")","v":272}]
[6,"MicroOndas",800,220,1,0.3,{"v":1,"d":"1.0"},{"v":1,"d":"1.0"},{"$f":"IFERROR(IF(Equipmentos[[#This Row],[Quantidade]]=\"\",\"\",Equipmentos[[#This Row],[Potência Nominal '[W']]]*Equipmentos[[#This Row],[Quantidade]]/IF(Equipmentos[[#This Row],[Potência Nominal '[W']]]=\"\",1,Equipmentos[[#This Row],[FP]])),\"\")","v":800},{"$f":"IF(Equipmentos[[#This Row],[Potência Nominal '[W']]]=\"\",0,Equipmentos[[#This Row],[Potência Total '[W']]]*Equipmentos[[#This Row],[Ip/In]])","v":800},{"$f":"IFERROR(IF(Equipmentos[[#This Row],[Quantidade]]=\"\",\"\",Equipmentos[[#This Row],[Potência Total '[W']]]*Equipmentos[[#This Row],[Tempo Ligado '[h']]]),\"\")","v":240}]
[7,"Air Fryer",1500,220,0,0,{"v":1,"d":"1.0"},{"v":1,"d":"1.0"},{"$f":"IFERROR(IF(Equipmentos[[#This Row],[Quantidade]]=\"\",\"\",Equipmentos[[#This Row],[Potência Nominal '[W']]]*Equipmentos[[#This Row],[Quantidade]]/IF(Equipmentos[[#This Row],[Potência Nominal '[W']]]=\"\",1,Equipmentos[[#This Row],[FP]])),\"\")","v":0},{"$f":"IF(Equipmentos[[#This Row],[Potência Nominal '[W']]]=\"\",0,Equipmentos[[#This Row],[Potência Total '[W']]]*Equipmentos[[#This Row],[Ip/In]])","v":0},{"$f":"IFERROR(IF(Equipmentos[[#This Row],[Quantidade]]=\"\",\"\",Equipmentos[[#This Row],[Potência Total '[W']]]*Equipmentos[[#This Row],[Tempo Ligado '[h']]]),\"\")","v":0}]
[8,"Refrigerador",250,220,1,24,{"v":1,"d":"1.0"},{"v":1,"d":"1.0"},{"$f":"IFERROR(IF(Equipmentos[[#This Row],[Quantidade]]=\"\",\"\",Equipmentos[[#This Row],[Potência Nominal '[W']]]*Equipmentos[[#This Row],[Quantidade]]/IF(Equipmentos[[#This Row],[Potência Nominal '[W']]]=\"\",1,Equipmentos[[#This Row],[FP]])),\"\")","v":250},{"$f":"IF(Equipmentos[[#This Row],[Potência Nominal '[W']]]=\"\",0,Equipmentos[[#This Row],[Potência Total '[W']]]*Equipmentos[[#This Row],[Ip/In]])","v":250},{"$f":"IFERROR(IF(Equipmentos[[#This Row],[Quantidade]]=\"\",\"\",Equipmentos[[#This Row],[Potência Total '[W']]]*Equipmentos[[#This Row],[Tempo Ligado '[h']]]),\"\")","v":6000}]
[9,"Freezer",150,220,1,24,{"v":1,"d":"1.0"},{"v":1,"d":"1.0"},{"$f":"IFERROR(IF(Equipmentos[[#This Row],[Quantidade]]=\"\",\"\",Equipmentos[[#This Row],[Potência Nominal '[W']]]*Equipmentos[[#This Row],[Quantidade]]/IF(Equipmentos[[#This Row],[Potência Nominal '[W']]]=\"\",1,Equipmentos[[#This Row],[FP]])),\"\")","v":150},{"$f":"IF(Equipmentos[[#This Row],[Potência Nominal '[W']]]=\"\",0,Equipmentos[[#This Row],[Potência Total '[W']]]*Equipmentos[[#This Row],[Ip/In]])","v":150},{"$f":"IFERROR(IF(Equipmentos[[#This Row],[Quantidade]]=\"\",\"\",Equipmentos[[#This Row],[Potência Total '[W']]]*Equipmentos[[#This Row],[Tempo Ligado '[h']]]),\"\")","v":3600}]
[10,"Maquina Lavar",1500,220,1,1,{"v":1,"d":"1.0"},{"v":1,"d":"1.0"},{"$f":"IFERROR(IF(Equipmentos[[#This Row],[Quantidade]]=\"\",\"\",Equipmentos[[#This Row],[Potência Nominal '[W']]]*Equipmentos[[#This Row],[Quantidade]]/IF(Equipmentos[[#This Row],[Potência Nominal '[W']]]=\"\",1,Equipmentos[[#This Row],[FP]])),\"\")","v":1500},{"$f":"IF(Equipmentos[[#This Row],[Potência Nominal '[W']]]=\"\",0,Equipmentos[[#This Row],[Potência Total '[W']]]*Equipmentos[[#This Row],[Ip/In]])","v":1500},{"$f":"IFERROR(IF(Equipmentos[[#This Row],[Quantidade]]=\"\",\"\",Equipmentos[[#This Row],[Potência Total '[W']]]*Equipmentos[[#This Row],[Tempo Ligado '[h']]]),\"\")","v":1500}]
[11,"Chuveiro",7800,220,0,0.5,{"v":1,"d":"1.0"},{"v":1,"d":"1.0"},{"$f":"IFERROR(IF(Equipmentos[[#This Row],[Quantidade]]=\"\",\"\",Equipmentos[[#This Row],[Potência Nominal '[W']]]*Equipmentos[[#This Row],[Quantidade]]/IF(Equipmentos[[#This Row],[Potência Nominal '[W']]]=\"\",1,Equipmentos[[#This Row],[FP]])),\"\")","v":0},{"$f":"IF(Equipmentos[[#This Row],[Potência Nominal '[W']]]=\"\",0,Equipmentos[[#This Row],[Potência Total '[W']]]*Equipmentos[[#This Row],[Ip/In]])","v":0},{"$f":"IFERROR(IF(Equipmentos[[#This Row],[Quantidade]]=\"\",\"\",Equipmentos[[#This Row],[Potência Total '[W']]]*Equipmentos[[#This Row],[Tempo Ligado '[h']]]),\"\")","v":0}]
[12,"Ar Condicionado 9000 BTU",850,220,2,12,{"v":1,"d":"1.0"},{"v":1,"d":"1.0"},{"$f":"IFERROR(IF(Equipmentos[[#This Row],[Quantidade]]=\"\",\"\",Equipmentos[[#This Row],[Potência Nominal '[W']]]*Equipmentos[[#This Row],[Quantidade]]/IF(Equipmentos[[#This Row],[Potência Nominal '[W']]]=\"\",1,Equipmentos[[#This Row],[FP]])),\"\")","v":1700},{"$f":"IF(Equipmentos[[#This Row],[Potência Nominal '[W']]]=\"\",0,Equipmentos[[#This Row],[Potência Total '[W']]]*Equipmentos[[#This Row],[Ip/In]])","v":1700},{"$f":"IFERROR(IF(Equipmentos[[#This Row],[Quantidade]]=\"\",\"\",Equipmentos[[#This Row],[Potência Total '[W']]]*Equipmentos[[#This Row],[Tempo Ligado '[h']]]),\"\")","v":20400}]
[13,"Ar Condicionado 12000 BTU",1200,220,0,4,{"v":1,"d":"1.0"},{"v":1,"d":"1.0"},{"$f":"IFERROR(IF(Equipmentos[[#This Row],[Quantidade]]=\"\",\"\",Equipmentos[[#This Row],[Potência Nominal '[W']]]*Equipmentos[[#This Row],[Quantidade]]/IF(Equipmentos[[#This Row],[Potência Nominal '[W']]]=\"\",1,Equipmentos[[#This Row],[FP]])),\"\")","v":0},{"$f":"IF(Equipmentos[[#This Row],[Potência Nominal '[W']]]=\"\",0,Equipmentos[[#This Row],[Potência Total '[W']]]*Equipmentos[[#This Row],[Ip/In]])","v":0},{"$f":"IFERROR(IF(Equipmentos[[#This Row],[Quantidade]]=\"\",\"\",Equipmentos[[#This Row],[Potência Total '[W']]]*Equipmentos[[#This Row],[Tempo Ligado '[h']]]),\"\")","v":0}]
[14,"Aspirador de Pó",1400,220,0,0,{"v":1,"d":"1.0"},{"v":1,"d":"1.0"},{"$f":"IFERROR(IF(Equipmentos[[#This Row],[Quantidade]]=\"\",\"\",Equipmentos[[#This Row],[Potência Nominal '[W']]]*Equipmentos[[#This Row],[Quantidade]]/IF(Equipmentos[[#This Row],[Potência Nominal '[W']]]=\"\",1,Equipmentos[[#This Row],[FP]])),\"\")","v":0},{"$f":"IF(Equipmentos[[#This Row],[Potência Nominal '[W']]]=\"\",0,Equipmentos[[#This Row],[Potência Total '[W']]]*Equipmentos[[#This Row],[Ip/In]])","v":0},{"$f":"IFERROR(IF(Equipmentos[[#This Row],[Quantidade]]=\"\",\"\",Equipmentos[[#This Row],[Potência Total '[W']]]*Equipmentos[[#This Row],[Tempo Ligado '[h']]]),\"\")","v":0}]
[15,"Secador De cabelo",100,220,1,0,{"v":1,"d":"1.0"},{"v":1,"d":"1.0"},{"$f":"IFERROR(IF(Equipmentos[[#This Row],[Quantidade]]=\"\",\"\",Equipmentos[[#This Row],[Potência Nominal '[W']]]*Equipmentos[[#This Row],[Quantidade]]/IF(Equipmentos[[#This Row],[Potência Nominal '[W']]]=\"\",1,Equipmentos[[#This Row],[FP]])),\"\")","v":100},{"$f":"IF(Equipmentos[[#This Row],[Potência Nominal '[W']]]=\"\",0,Equipmentos[[#This Row],[Potência Total '[W']]]*Equipmentos[[#This Row],[Ip/In]])","v":100},{"$f":"IFERROR(IF(Equipmentos[[#This Row],[Quantidade]]=\"\",\"\",Equipmentos[[#This Row],[Potência Total '[W']]]*Equipmentos[[#This Row],[Tempo Ligado '[h']]]),\"\")","v":0}]
[16,"Outros",10000,220,0,0.5,{"v":1,"d":"1.0"},{"v":1,"d":"1.0"},{"$f":"IFERROR(IF(Equipmentos[[#This Row],[Quantidade]]=\"\",\"\",Equipmentos[[#This Row],[Potência Nominal '[W']]]*Equipmentos[[#This Row],[Quantidade]]/IF(Equipmentos[[#This Row],[Potência Nominal '[W']]]=\"\",1,Equipmentos[[#This Row],[FP]])),\"\")","v":0},{"$f":"IF(Equipmentos[[#This Row],[Potência Nominal '[W']]]=\"\",0,Equipmentos[[#This Row],[Potência Total '[W']]]*Equipmentos[[#This Row],[Ip/In]])","v":0},{"$f":"IFERROR(IF(Equipmentos[[#This Row],[Quantidade]]=\"\",\"\",Equipmentos[[#This Row],[Potência Total '[W']]]*Equipmentos[[#This Row],[Tempo Ligado '[h']]]),\"\")","v":0}]
[]
[{"$nulls":8},{"$f":"SUM(I9:I24)/1000","v":{"v":4.988,"d":"4.99"}},{"$f":"SUM(J9:J24)/1000","v":{"v":4.988,"d":"4.99"}},{"$f":"SUM(K9:K24)/1000","v":{"v":38.192,"d":"38.19"}}]
[{"$nulls":8},"Potência Nominal Total [kW]","Potência de Pico Total [kW]","Consumo diário Total [kWh]"]

{"sheet":"PRODUCT DATA","index":3,"n_rows":20,"n_cols":25,"rows_kept":20,"hidden":true}
[{"$nulls":23},384,27]
[null,"Fox ESS name","Max Power EPS [W]","Rated Voltage [V]","Peak Power (60s)  [W]","Picture","Efficiency","Bat Máx Current","Bat Input","Max. Array Power","Recommended PV Power","Max PV Voltage","Min MPPT Voltage","Max MPPT Voltage","Max PV I","PV Isc","MPPTs","Input per MPPT"]
[null,"H1-5.0-E-G2",5000,220,5500,{"$error":"#VALUE!"},{"v":0.97,"d":"97.00%"},50,1,10000,10000,600,80,550,16,20,2,1]
[null,"KH7.5",7500,220,10000,{"$error":"#VALUE!"},{"v":0.972,"d":"97.20%"},50,1,16000,12000,600,80,500,16,20,3,1]
[null,"KH10.5",10500,220,15000,{"$error":"#VALUE!"},{"v":0.972,"d":"97.20%"},50,1,21000,15000,600,80,500,16,20,4,1]
[null,"H1-5.7-US",5700,"127/220",7695,{"$error":"#VALUE!"},{"v":0.97,"d":"97.00%"},50,1,11400,11400,600,80,550,14,28,3,1]
[null,"H1-7.5-US",7500,"127/220",10125,{"$error":"#VALUE!"},{"v":0.97,"d":"97.00%"},50,1,15000,15000,600,80,550,14,28,3,1]
[null,"H1-11.4-US",11400,"127/220",15389,{"$error":"#VALUE!"},{"v":0.97,"d":"97.00%"},50,1,22800,22800,600,80,550,14,28,3,1]
[null,"H3-PRO-11.5",11500,220,12600,{"$error":"#VALUE!"},{"v":0.973,"d":"97.30%"},50,2,22000,16500,1000,150,850,16,20,3,2]
[null,"H3-PRO-20.0",20000,380,24000,{"$error":"#VALUE!"},{"v":0.973,"d":"97.30%"},50,2,40000,30000,1000,150,850,16,20,3,2]
[null,"H3-PRO-17.3",17300,220,19000,{"$error":"#VALUE!"},{"v":0.973,"d":"97.30%"},50,2,34000,25500,1000,150,850,16,20,3,2]
[null,"H3-PRO-30.0",30000,380,36000,{"$error":"#VALUE!"},{"v":0.973,"d":"97.30%"},50,2,60000,45000,1000,150,850,16,20,3,2]
[]
[null,"Fox ESS name","Tech espc.","Nominal Voltage","Column1","Weight","Column2","Picture",null,"Model","Nom. Capacity","Nom. Power","Peak Power","DoD","RT Efficiency","Voltage","Nom. Current","Picture","Recom. Charge Cur."]
[null,"HV Junction-Box","-","-","-","-","-",{"$error":"#VALUE!"},null,"EP5",5.18,{"$f":"K15","v":5.18},{"$f":"Bateries[[#This Row],[Nom. Power]]*2.41","v":12.4838},{"v":0.9,"d":"90%"},{"v":0.95,"d":"95%"},192,27,{"$error":"#VALUE!"},{"$f":"Bateries[[#This Row],[Nom. Current]]/2","v":13.5}]
[null,"AI Link (A-1000)","-","-","-","-","-",{"$error":"#VALUE!"},null,"EP11",10.36,{"$f":"K16","v":10.36},{"$f":"Bateries[[#This Row],[Nom. Power]]*2.41","v":24.9676},{"v":0.9,"d":"90%"},{"v":0.95,"d":"95%"},384,27,{"$error":"#VALUE!"},{"$f":"Bateries[[#This Row],[Nom. Current]]/2","v":13.5}]
[null,"Quadro Baixa Tensão",{"$nulls":5},{"$error":"#VALUE!"},null,"EP6",5.76,{"$f":"Bateries[[#This Row],[Voltage]]*Bateries[[#This Row],[Nom. Current]]/1000","v":5.76},{"$f":"65/Q17*Bateries[[#This Row],[Nom. Power]]","v":12.479999999999999},{"v":0.9,"d":"90%"},{"v":0.95,"d":"95%"},192,30," ",{"$f":"Bateries[[#This Row],[Nom. Current]]/2","v":15}]
[null,"Fox Hub G2",{"$nulls":5},{"$error":"#VALUE!"},null,"EP12",11.52,11.52,{"$f":"65/Bateries[[#This Row],[Nom. Current]]*Bateries[[#This Row],[Nom. Power]]","v":24.959999999999997},{"v":0.9,"d":"90%"},{"v":0.95,"d":"95%"},384,30," ",{"$f":"Bateries[[#This Row],[Nom. Current]]/2","v":15}]
[{"$nulls":17}," "]
[{"$nulls":17}," "]

{"sheet":"CALC.","index":4,"n_rows":68,"n_cols":20,"rows_kept":68,"hidden":true}
[]
[null,"Warnings:","Reason",{"$nulls":3},"Grid Selected","kW required:"]
[null,"NÃO RECOMENDADO PARA ESTA APLICAÇÃO","Too much Power",{"$nulls":3},{"$f":"DIMENSIONAMENTO!C7","v":"Bifásica (127/220 V)"},{"$f":"DIMENSIONAMENTO!I26*1000","v":{"v":4988,"d":"4988.00"}}]
[null,"NÃO INDICADO PARA OPERAÇÃO EM BACKUP OU OFF-GRID","Too much Power"]
[null,"PARALELISMO PERMITIDO APENAS  COM INCLUSÃO DO FOX HUB (VERIFIQUE COMPATIBILIDADE)","H1-US in Parallel",null,"REF","QTY","Single Phase","Split phase","3x 220","3x 380",null,"kWh required:",{"$f":"IF(DIMENSIONAMENTO!K26=0,\"\",DIMENSIONAMENTO!K26/24*DIMENSIONAMENTO!C6)","v":3.1826666666666665}]
[null,"PARALELISMO PERMITIDO APENAS  COM INCLUSÃO DO  AI LINK","H3-Pro in Parallel",null,1,1,{"$f":"'PRODUCT DATA'!C3*'PRODUCT DATA'!G3","v":4850},{"$f":"'PRODUCT DATA'!$C$6*F6*'PRODUCT DATA'!G6","v":5529},{"$f":"'PRODUCT DATA'!$C$9*F6*'PRODUCT DATA'!G9","v":{"v":11189.5,"d":"11190"}},{"$f":"'PRODUCT DATA'!$C$10*F6*'PRODUCT DATA'!G10","v":19460}]
[null,"PARALELISMO PERMITIDO APENAS  COM INCLUSÃO DO EPS BOX"," H3-E in Parallel",null,2,2,null,null,{"$f":"I6*F7","v":22379},{"$f":"J6*F7","v":38920},null,"Qty","Capacity EP5","Power EP5","Peak Power EP5","Efficiency EP5","Capacity EP11","Power EP11","Peak Power EP11","Efficieny EP11"]
[null,"VERIFIQUE AS TENSÕES NOMINAIS DOS APARELHOS E TIPO DE REDE ","Grid type and Load Voltage incompatible",null,3,3]
[null,"PREENCHA O FATOR DE POTÊNCIA DE TODOS OS APARELHOS","PF not filled",null,4,4,{"$nulls":5},1,{"$f":"'PRODUCT DATA'!$L$15*'PRODUCT DATA'!$N$15*'PRODUCT DATA'!$O$15*N12","v":{"v":4.4289,"d":"4.43"}},{"$f":"ROUNDDOWN(_xlfn.LET(\n    _xlpm.entradas, IF(ISNUMBER(MATCH('CALC.'!$G$68,'PRODUCT DATA'!$B$9:$B$12,0)),2,1),\n    _xlpm.I_banco, 'PRODUCT DATA'!$Q$15*$N$12,\n    _xlpm.I_inversor, VLOOKUP('CALC.'!$G$68,'PRODUCT DATA'!$B$2:$I$12,7,0)*_xlpm.entradas*'CALC.'!$H$68,\n    'PRODUCT DATA'!$P$15*MIN(_xlpm.I_banco,_xlpm.I_inversor)/1000\n),\n2\n)","v":5.18},{"$f":"BatCalc[[#This Row],[Power EP5]]*2.41","v":{"v":12.4838,"d":"12.48"}},{"$f":"'PRODUCT DATA'!$O$15","v":{"v":0.95,"d":"95%"}},{"$f":"'PRODUCT DATA'!$L$16*'PRODUCT DATA'!$N$16*'PRODUCT DATA'!$O$16*R12","v":{"v":8.8578,"d":"8.86"}},{"$f":"ROUNDDOWN(\n_xlfn.LET(\n    _xlpm.entradas, IF(ISNUMBER(MATCH('CALC.'!$G$68,'PRODUCT DATA'!$B$9:$B$12,0)),2,1),\n    _xlpm.corrente_banco, 'PRODUCT DATA'!$Q$16*$R$12,\n    _xlpm.corrente_inversores, VLOOKUP('CALC.'!$G$68,'PRODUCT DATA'!$B$2:$I$12,7,0)*_xlpm.entradas*'CALC.'!$H$68,\n    'PRODUCT DATA'!$P$16*MIN(_xlpm.corrente_banco,_xlpm.corrente_inversores)/1000\n),\n2\n)","v":10.36},{"$f":"BatCalc[[#This Row],[Power EP11]]*2.41","v":{"v":24.9676,"d":"24.97"}},{"$f":"'PRODUCT DATA'!$O$16","v":{"v":0.95,"d":"95%"}}]
[null,"PREENCHA A CORRENTE DE PICO (Ip/In) DE TODOS OS APARELHOS","Peak Current not filled",null,5,1,{"$f":"'PRODUCT DATA'!C4*'PRODUCT DATA'!G4","v":7290},{"$f":"'PRODUCT DATA'!$C$7*F10*'PRODUCT DATA'!G7","v":7275}]
[null,"PREENCHA A TENSÃO NOMINAL DE TODOS OS APARELHOS","Load voltage not filled",null,6,2,{"$f":"G$10*$F11","v":14580},{"$f":"H10*F11","v":14550},{"$nulls":3},"Battery per Inv input",null,{"$f":"IFERROR(ROUNDUP(IF(OR('CALC.'!G68='PRODUCT DATA'!B9,'CALC.'!G68='PRODUCT DATA'!B10,'CALC.'!G68='PRODUCT DATA'!B11,'CALC.'!G68='PRODUCT DATA'!B12),ROUNDUP(N12/'CALC.'!H68,0)*'CALC.'!H68/RESULTADO!C10/2,RESULTADO!C13/RESULTADO!C10),0),\"\")","v":1},{"$nulls":3},{"$f":"ROUNDUP(IF(OR('CALC.'!G68='PRODUCT DATA'!B9,'CALC.'!G68='PRODUCT DATA'!B10,'CALC.'!G68='PRODUCT DATA'!B11,'CALC.'!G68='PRODUCT DATA'!B12),RESULTADO!C15/RESULTADO!C10/2,RESULTADO!C15/RESULTADO!C10),0)","v":1}]
[null,"MÁXIMO DE 4 BATERIAS POR INVERSOR -  UTILIZE EXCLUSIVAMENTE BATERIAS EP11","Too much Authonomy",null,7,3,{"$nulls":5},"Calc over Nom Power:",null,{"$f":"ROUNDUP(\n_xlfn.LET(\n    _xlpm.capacidade, VLOOKUP(\"EP5\",'PRODUCT DATA'!$J$14:$S$19,2,0),\n    _xlpm.dod, VLOOKUP(\"EP5\",'PRODUCT DATA'!$J$14:$S$19,5,0),\n    _xlpm.eficiencia, VLOOKUP(\"EP5\",'PRODUCT DATA'!$J$14:$S$19,6,0),\n    M5/(_xlpm.capacidade*_xlpm.dod*_xlpm.eficiencia)\n)    /'CALC.'!$H$68,0)*'CALC.'!$H$68","v":1},{"$nulls":3},{"$f":"ROUNDUP(\n_xlfn.LET(\n    _xlpm.capacidade, VLOOKUP(\"EP11\",'PRODUCT DATA'!$J$14:$S$19,2,0),\n    _xlpm.dod, VLOOKUP(\"EP11\",'PRODUCT DATA'!$J$14:$S$19,5,0),\n    _xlpm.eficiencia, VLOOKUP(\"EP11\",'PRODUCT DATA'!$J$14:$S$19,6,0),\n    M5/(_xlpm.capacidade*_xlpm.dod*_xlpm.eficiencia)\n)    /'CALC.'!$H$68,0)*'CALC.'!$H$68","v":1}]
[null,"MÁXIMO DE 4 BATERIAS POR INVERSOR - AUMENTE  A QUANTIDADE DE INVERSORES (AUMENTE AS CARGAS EM KW)","Too much Authonomy",null,8,4,{"$nulls":5},"Calc over Peak Power:",null,{"$f":"ROUNDUP(O9/H32,0)","v":1},{"$nulls":3},{"$f":"ROUNDUP(S9/H32,0)","v":1}]
[null,"MÁXIMO DE 8 BATERIAS POR INVERSOR - AUMENTE  A QUANTIDADE DE INVERSORES (AUMENTE AS CARGAS EM KW)","Too much Authonomy",null,9,5,{"$nulls":5},"Final Decision:",null,{"$f":"IF(N13=0,999,MAX(N12:N13))","v":1},{"$nulls":3},{"$f":"IF(R13=0,999,MAX(R12:R13))","v":1}]
[null,"JUNCTION BOX OBRIGATÓRIA APENAS EM CASO DE USO DA BATERIA EP5","Batteries in Parallel",null,10,1,{"$f":"'PRODUCT DATA'!C5*'PRODUCT DATA'!G5","v":10206},{"$f":"'PRODUCT DATA'!C8*'PRODUCT DATA'!G8","v":11058},{"$f":"'PRODUCT DATA'!$C$11*F15*'PRODUCT DATA'!G11","v":{"v":16832.899999999998,"d":"16833"}},{"$f":"'PRODUCT DATA'!$C$12*F15*'PRODUCT DATA'!G12","v":29190}]
[null,"POTÊNCIA DAS BATERIAS INSUFICIENTE NO MODO OFF-GRID - CONSIDERE MAIS BATERIAS (AUMENTANDO A AUTONOMIA) OU OUTRAS FONTES DE ENERGIA (EX.: FOTOVOLTAICO)","Low Bat Power",null,11,2,{"$f":"G$15*$F16","v":20412},{"$f":"H$15*$F16","v":22116},{"$f":"$I$15*F16","v":{"v":33665.799999999996,"d":"33666"}},{"$f":"$J$15*F16","v":58380}]
[null,"POTÊNCIA DAS BATERIAS EP5 INSUFICIENTE NO MODO OFF-GRID - CONSIDERE MAIS BATERIAS (AUMENTANDO A AUTONOMIA), OUTRAS FONTES DE ENERGIA (EX.: FOTOVOLTAICO), OU UTILIZE A EP11","Low Bat Power",null,12,3,{"$f":"$G$15*F17","v":30618},{"$f":"H$15*$F17","v":33174},{"v":50498.7,"d":"50499"},87570]
[null,"REDUZA A POTÊNCIA DE PICO DAS CARGAS, PARA VIABILIZAR O SISTEMA","Too much Peak Power",null,13,4,40824,44232,{"v":67331.59999999999,"d":"67332"},116760]
[null,"PARA SISTEMAS COM BATERIAS EP5, CONSIDERE O USO DE 2 JUNCTION BOX","EP5 in Parallel",null,14,5,51030,55290,{"v":84164.49999999999,"d":"84165"},145950,null,"PV MODULES","QTY","Voc","Vmp","Imax","Isc","Power"]
[null,"CUIDADO COM O TEMPO DE CARGA DAS BATERIAS"," ",null,15,6,61236,66348,{"v":100997.4,"d":"100997"},175140]
[null,"INVERSORES NÃO SUPORTAM A POTÊNCIA DE PICO","Too much Power",null,16,7,71442,77406,{"v":117830.29999999999,"d":"117830"},204330]
[null,"QUANTIDADE DAS CARGAS ZERADA","No Loads",null,17,8,81648,88464,{"v":134663.19999999998,"d":"134663"},233520]
[null,"O FATOR DE POTÊNCIA DEVE ESTAR ENTRE 0.8 E 1","PF out of bounds",null,18,9,91854,99522,{"v":151496.09999999998,"d":"151496"},262710]
[{"$nulls":4},19,10,102060,110580,{"v":168328.99999999997,"d":"168329"},291900]
[{"$nulls":4}," ",{"$nulls":6},"Max. Array Power","Recommended PV Power","Max PV Voltage","Min MPPT Voltage","Max MPPT Voltage","Max PV I","PV Isc","MPPTs","Input per MPPT"]
[{"$nulls":4}," ","Minimum Power:",{"$f":"MIN(IF(G6:G24>=$H$3,G6:G24))","v":7290},{"$f":"MIN(IF(H6:H24>=$H$3,H6:H24))","v":5529},{"$f":"MIN(IF(I6:I24>=$H$3,I6:I24))","v":11189.5},{"$f":"MIN(IF(J6:J24>=$H$3,J6:J24))","v":19460},null,{"$f":"VLOOKUP($G$68,Inverters[#All],9,0)","v":11400},{"$f":"VLOOKUP($G$68,Inverters[#All],10,0)","v":11400},{"$f":"VLOOKUP($G$68,Inverters[#All],11,0)","v":600},{"$f":"VLOOKUP($G$68,Inverters[#All],12,0)","v":80},{"$f":"VLOOKUP($G$68,Inverters[#All],13,0)","v":550},{"$f":"VLOOKUP($G$68,Inverters[#All],14,0)","v":14},{"$f":"VLOOKUP($G$68,Inverters[#All],15,0)","v":28},{"$f":"VLOOKUP($G$68,Inverters[#All],16,0)","v":3},{"$f":"VLOOKUP($G$68,Inverters[#All],17,0)","v":1}]
[{"$nulls":4}," ","REF:",{"$f":"_xlfn.XLOOKUP(\n    MIN(_xlfn._xlws.FILTER(InvtCalc[Single Phase],InvtCalc[Single Phase]>=$H$3)),\n    InvtCalc[Single Phase],\n    InvtCalc[REF]\n)","v":5},{"$f":"_xlfn.XLOOKUP(\n    MIN(_xlfn._xlws.FILTER(InvtCalc[Split phase],InvtCalc[Split phase]>=$H$3)),\n    InvtCalc[Split phase],\n    InvtCalc[REF]\n)","v":1},{"$f":"_xlfn.XLOOKUP(\n    MIN(_xlfn._xlws.FILTER(InvtCalc[3x 220],InvtCalc[3x 220]>=$H$3)),\n    InvtCalc[3x 220],\n    InvtCalc[REF]\n)","v":1},{"$f":"_xlfn.XLOOKUP(\n    MIN(_xlfn._xlws.FILTER(InvtCalc[3x 380],InvtCalc[3x 380]>=$H$3)),\n    InvtCalc[3x 380],\n    InvtCalc[REF]\n)","v":1}]
[null,"Bat Autonomy",null,null," ","Model:",{"$f":"_xlfn.IFS(G27<5,'PRODUCT DATA'!B3,G27<9,'PRODUCT DATA'!B4,G27<=19,'PRODUCT DATA'!B5)","v":"KH7.5"},{"$f":"_xlfn.IFS(H27<5,'PRODUCT DATA'!B6,H27<9,'PRODUCT DATA'!B7,H27<=19,'PRODUCT DATA'!B8)","v":"H1-5.7-US"},{"$f":"_xlfn.IFS(I27<5,'PRODUCT DATA'!B9,I27<9,\"ERRO\",I27<=19,'PRODUCT DATA'!B11)","v":"H3-PRO-11.5"},{"$f":"_xlfn.IFS(J27<5,'PRODUCT DATA'!B10,J27<9,\"ERRO\",J27<=19,'PRODUCT DATA'!B12)","v":"H3-PRO-20.0"}]
[null,1,null,null," ","Qty:",{"$f":"ROUNDUP(G26/VLOOKUP(G28,Inverters[#All],2,0),0)","v":1},{"$f":"ROUNDUP(H26/VLOOKUP(H28,Inverters[#All],2,0),0)","v":1},{"$f":"ROUNDUP(I26/VLOOKUP(I28,Inverters[#All],2,0),0)","v":1},{"$f":"ROUNDUP(J26/VLOOKUP(J28,Inverters[#All],2,0),0)","v":1}]
[null,2,null,null," "]
[null,3,null,null," "]
[null,4,{"$nulls":4},"kWp required:",{"$f":"DIMENSIONAMENTO!J26*1000","v":{"v":4988,"d":"4988.00"}}]
[null,5,null,null,"REF","Qty","Monofásica","Bifásica","Tri220","Tri380"]
[null,6,null,null,1,1,{"$f":"'PRODUCT DATA'!E3*'PRODUCT DATA'!G3","v":5335},{"$f":"'PRODUCT DATA'!$E$6*F34","v":7695},{"$f":"'PRODUCT DATA'!E$9*F34*'PRODUCT DATA'!G9","v":{"v":12259.8,"d":"12260"}},{"$f":"'PRODUCT DATA'!$E$10*F34*'PRODUCT DATA'!G10","v":23352}]
[null,7,null,null,2,2,null,null,{"$f":"I34*F35","v":{"v":24519.6,"d":"24520"}},{"$f":"J34*F35","v":46704}]
[null,8,null,null,3,3]
[null,10,"Nominal Voltage",null,4,4]
[null,12,380,null,5,1,{"$f":"'PRODUCT DATA'!E4*'PRODUCT DATA'!G4","v":9720},{"$f":"'PRODUCT DATA'!$E$7*F38","v":10125}]
[null,18,220,null,6,2,{"$f":"G38*$F39","v":19440},{"$f":"'PRODUCT DATA'!$E$7*F39","v":20250}]
[null,24,127,null,7,3]
[{"$nulls":4},8,4]
[null,null,"Grid Type",null,9,5]
[null,null,"Monofásica (220 V)",null,10,1,{"$f":"'PRODUCT DATA'!E5*'PRODUCT DATA'!G5","v":14580},{"$f":"'PRODUCT DATA'!$E$8*F43*'PRODUCT DATA'!G8","v":{"v":14927.33,"d":"14927"}},{"$f":"'PRODUCT DATA'!$E$11*F43*'PRODUCT DATA'!G11","v":18487},{"$f":"'PRODUCT DATA'!$E$12*F43*'PRODUCT DATA'!G12","v":35028}]
[null,null,"Bifásica (127/220 V)",null,11,2,{"$f":"$G$43*$F44","v":29160},{"$f":"$H$43*F44","v":{"v":29854.66,"d":"29855"}},{"$f":"$I$43*F44","v":36974},{"$f":"$J$43*F44","v":70056}]
[null,null,"Trifásica (220/380 V)",null,12,3,43740,{"v":44781.99,"d":"44782"},55461,105084]
[null,null,"Trifásica (127/220 V)",null,13,4,58320,{"v":59709.32,"d":"59709"},73948,140112]
[{"$nulls":4},14,5,72900,{"v":74636.65,"d":"74637"},92435,175140]
[null,null,"Other Values",null,15,6,87480,{"v":89563.98,"d":"89564"},110922,210168]
[null,null,1000,null,16,7,102060,{"v":104491.31,"d":"104491"},129409,245196]
[null,null,0.8,null,17,8,116640,{"v":119418.64,"d":"119419"},147896,280224]
[null,null,1,null,18,9,131220,{"v":134345.97,"d":"134346"},166383,315252]
[null,null,2,null,19,10,145800,{"v":149273.3,"d":"149273"},184870,350280]
[null,null,3,null,20,11,160380,{"$f":"$H$43*F53","v":{"v":164200.63,"d":"164201"}},{"$f":"$I$43*F53","v":203357},{"$f":"$J$43*F53","v":385308}]
[null,null,4,null,21,12,174960,{"v":179127.96,"d":"179128"},221844,420336]
[{"$nulls":4},22,13,189540,{"v":194055.29,"d":"194055"},240331,455364]
[]
[{"$nulls":5},"Minimum Power:",{"$f":"MIN(IF(InvCalcPeak[Monofásica]>=$H$32,InvCalcPeak[Monofásica]))","v":5335},{"$f":"MIN(IF(InvCalcPeak[Bifásica]>=$H$32,InvCalcPeak[Bifásica]))","v":7695},{"$f":"MIN(IF(InvCalcPeak[Tri220]>=$H$32,InvCalcPeak[Tri220]))","v":12259.8},{"$f":"MIN(IF(InvCalcPeak[Tri380]>=$H$32,InvCalcPeak[Tri380]))","v":23352}]
[{"$nulls":5},"Ref:",{"$f":"_xlfn.XLOOKUP(\n    MIN(_xlfn._xlws.FILTER(InvCalcPeak[Monofásica],InvCalcPeak[Monofásica]>=$H$32)),\n    InvCalcPeak[Monofásica],\n    InvCalcPeak[REF]\n)","v":1},{"$f":"_xlfn.XLOOKUP(\n    MIN(_xlfn._xlws.FILTER(InvCalcPeak[Bifásica],InvCalcPeak[Bifásica]>=$H$32)),\n    InvCalcPeak[Bifásica],\n    InvCalcPeak[REF]\n)","v":1},{"$f":"_xlfn.XLOOKUP(\n    MIN(_xlfn._xlws.FILTER(InvCalcPeak[Tri220],InvCalcPeak[Tri220]>=$H$32)),\n    InvCalcPeak[Tri220],\n    InvCalcPeak[REF]\n)","v":1},{"$f":"_xlfn.XLOOKUP(\n    MIN(_xlfn._xlws.FILTER(InvCalcPeak[Tri380],InvCalcPeak[Tri380]>=$H$32)),\n    InvCalcPeak[Tri380],\n    InvCalcPeak[REF]\n)","v":1}]
[{"$nulls":5},"Model:",{"$f":"_xlfn.IFS(G58<5,'PRODUCT DATA'!B3,G58<9,'PRODUCT DATA'!B4,G58<=19,'PRODUCT DATA'!B5)","v":"H1-5.0-E-G2"},{"$f":"_xlfn.IFS(H58<5,'PRODUCT DATA'!B6,H58<9,'PRODUCT DATA'!B7,H58<=19,'PRODUCT DATA'!B8)","v":"H1-5.7-US"},{"$f":"_xlfn.IFS(I58<5,'PRODUCT DATA'!B9,I58<9,\"ERRO\",I58<=19,'PRODUCT DATA'!B11)","v":"H3-PRO-11.5"},{"$f":"_xlfn.IFS(J58<5,'PRODUCT DATA'!B9,J58<9,\"ERRO\",J58<=19,'PRODUCT DATA'!B11)","v":"H3-PRO-11.5"}]
[{"$nulls":5},"Qty:",{"$f":"VLOOKUP(G58,InvCalcPeak[#All],2,0)","v":1},{"$f":"VLOOKUP(H58,InvCalcPeak[#All],2,0)","v":1},{"$f":"VLOOKUP(I58,InvCalcPeak[#All],2,0)","v":1},{"$f":"VLOOKUP(J58,InvCalcPeak[#All],2,0)","v":1}]
[]
[]
[]
[{"$nulls":6},"Check Peak:"]
[{"$nulls":5},"Calc over Nom Power:",{"$f":"_xlfn.IFS(DIMENSIONAMENTO!C7='CALC.'!C43,'CALC.'!G28,DIMENSIONAMENTO!C7='CALC.'!C44,'CALC.'!H28,DIMENSIONAMENTO!C7='CALC.'!C45,'CALC.'!J28,DIMENSIONAMENTO!C7='CALC.'!C46,'CALC.'!I28)","v":"H1-5.7-US"},{"$f":"_xlfn.IFS(DIMENSIONAMENTO!C7='CALC.'!C43,'CALC.'!G29,DIMENSIONAMENTO!C7='CALC.'!C44,'CALC.'!H29,DIMENSIONAMENTO!C7='CALC.'!C45,'CALC.'!J29,DIMENSIONAMENTO!C7='CALC.'!C46,'CALC.'!I29)","v":1}]
[{"$nulls":5},"Calc over Peak Power:",{"$f":"_xlfn.IFS(DIMENSIONAMENTO!C7='CALC.'!C43,G59,DIMENSIONAMENTO!C7='CALC.'!C44,'CALC.'!H59,DIMENSIONAMENTO!C7='CALC.'!C45,'CALC.'!J59,DIMENSIONAMENTO!C7='CALC.'!C46,'CALC.'!I59)","v":"H1-5.7-US"},{"$f":"_xlfn.IFS(DIMENSIONAMENTO!C7=C43,G60,DIMENSIONAMENTO!C7=C44,H60,DIMENSIONAMENTO!C7=C45,J60,DIMENSIONAMENTO!C7=C46,I60)","v":1},null,{"$f":"MAX(VLOOKUP(G65,Inverters[#All],4,0),VLOOKUP(G66,Inverters[#All],4,0))","v":7695}]
[]
[{"$nulls":5},"Final Decision",{"$f":"IF(VLOOKUP(G65,Inverters[#All],4,0)*H65>H32,G65,G66)","v":"H1-5.7-US"},{"$f":"IF(H66=0,999,MAX(H65:H66))","v":1}]

{"sheet":"RESULTADO","index":5,"n_rows":32,"n_cols":13,"rows_kept":32,"merged":[[0,1,3,13],[5,4,5,6],[5,8,10,9],[5,10,6,10],[5,11,17,11],[5,12,8,12],[5,13,8,13],[6,1,6,2],[6,4,6,6],[7,1,8,1],[7,2,8,2],[7,4,8,6],[8,10,10,10],[9,4,10,6],[9,12,13,13],[11,4,11,6],[11,8,12,10],[12,4,13,6],[13,1,13,2],[13,8,13,9],[14,8,17,9],[14,12,17,13]]}
[null,"CALCULADORA BACKUP FOX ESS"]
[]
[]
[]
[]
[{"$nulls":4},"AVISOS:",{"$nulls":3},{"$f":"IF(\n   COUNTA(DIMENSIONAMENTO!B9:H24)=0,\n   \"\",\n   _xlfn.IFNA(VLOOKUP(B10,'PRODUCT DATA'!B2:I12,5,0),\"\")\n)","v":{"$error":"#VALUE!"}},{"$nulls":3},{"$f":"IFERROR(_xlfn.IFS(E8='CALC.'!B5,'PRODUCT DATA'!H18,E8='CALC.'!B6,'PRODUCT DATA'!H16),\"\")","v":""}]
[null,"Lista de Produtos (Total Fox ESS)",null,null,{"$f":"_xlfn.LET(\n\n_xlpm.QtdEquip, SUM(Equipmentos[Quantidade]),\n_xlpm.DimVazio, COUNTA(DIMENSIONAMENTO!B9:H24)=0,\n_xlpm.FaixaInvalida, OR(\n    COUNTIF(DIMENSIONAMENTO!G9:G24,\"<0.8\")>0,\n    COUNTIF(DIMENSIONAMENTO!G9:G24,\">1\")>0\n),\n\n_xlpm.TipoAlta, OR(B10='PRODUCT DATA'!B9,B10='PRODUCT DATA'!B10,B10='PRODUCT DATA'!B11,B10='PRODUCT DATA'!B12),\n_xlpm.TipoMedia, OR(B10='PRODUCT DATA'!B3,B10='PRODUCT DATA'!B4,B10='PRODUCT DATA'!B5,B10='PRODUCT DATA'!B6,B10='PRODUCT DATA'!B7,B10='PRODUCT DATA'!B8),\n\nIF(\nB10=\"\",\"\",\n\nIF(\n_xlpm.QtdEquip=0,\"\",\n\nIF(\n_xlpm.DimVazio,\"\",\n\nIF(\n_xlpm.FaixaInvalida,\n'CALC.'!B23,\n\nIFERROR(\n\n_xlfn.IFS(\n\nAND(_xlpm.TipoAlta,('CALC.'!R12/RESULTADO!C10)>8),\n'CALC.'!B14,\n\nAND(_xlpm.TipoMedia,('CALC.'!R12/RESULTADO!C10)>4),\n'CALC.'!B13,\n\nAND('CALC.'!N11>1,'CALC.'!R11<2),\n'CALC.'!B15,\n\nAND(_xlpm.TipoAlta,C15/C10<3,'CALC.'!N12/C10>2,C13<>\"\"),\n'CALC.'!B15,\n\nAND(_xlpm.TipoAlta,C15<5,C13>5,C13<>\"\"),\n'CALC.'!B19\n\n),\n\n\"\"\n)\n\n)\n)\n)\n)\n)","v":""}]
[null,"Modelo","Quantidade",null,{"$f":"IF(SUM(Equipmentos[Quantidade])=0,'CALC.'!B22,IF(\n   COUNTA(DIMENSIONAMENTO!B9:H24)=0,\n   \"\",\n   _xlfn.IFNA(_xlfn.IFS('CALC.'!H66=0,'CALC.'!B21,C10>10,'CALC.'!B3,C10<2,\"\",C10>4,'CALC.'!B4,B10='PRODUCT DATA'!B6,'CALC.'!B5,B10='PRODUCT DATA'!B7,'CALC.'!B5,B10='PRODUCT DATA'!B8,'CALC.'!B5,B10='PRODUCT DATA'!B9,'CALC.'!B6,B10='PRODUCT DATA'!B11,'CALC.'!B6,B10='PRODUCT DATA'!B10,'CALC.'!B6,B10='PRODUCT DATA'!B12,'CALC.'!B6,B10='PRODUCT DATA'!B3,\"\",B10='PRODUCT DATA'!B4,\"\",B10='PRODUCT DATA'!B5,\"\"),\"\")\n))","v":""},{"$nulls":5},{"$f":"IF(M6=\"\",\"\",\"+\")","v":""}]
[]
[null,{"$f":"IF('CALC.'!H68>4,\"\",IF(SUM(Equipmentos[Quantidade])=0,\"\",IF(\n   COUNTA(DIMENSIONAMENTO!B9:H24)=0,\"\",\n   _xlfn.IFNA('CALC.'!G68,\"\")\n)))","v":"H1-5.7-US"},{"$f":"IF(SUM(Equipmentos[Quantidade])=0,\"\",IF(\n   COUNTA(DIMENSIONAMENTO!B9:H24)=0,\n   \"\",\n   _xlfn.IFNA(IF(B10=\"\",\"\",'CALC.'!H68),\"\")\n))","v":1},null,{"$f":"IF(SUM(Equipmentos[Quantidade])=0,\"\",IF(\n   COUNTA(DIMENSIONAMENTO!B9:H24)=0,\n   \"\",\n   _xlfn.IFNA(_xlfn.IFS(\n   SUMPRODUCT(\n      --(DIMENSIONAMENTO!H8:H24=\"\"),\n      --(MMULT(--(DIMENSIONAMENTO!B8:H24<>\"\"),TRANSPOSE(COLUMN(DIMENSIONAMENTO!B8:H8)^0))>0)\n   )>0, 'CALC.'!B10,\n\n   SUMPRODUCT(\n      --(DIMENSIONAMENTO!D8:D24=\"\"),\n      --(MMULT(--(DIMENSIONAMENTO!B8:H24<>\"\"),TRANSPOSE(COLUMN(DIMENSIONAMENTO!B8:H8)^0))>0)\n   )>0, 'CALC.'!B11,\n\n   SUMPRODUCT(\n      --(DIMENSIONAMENTO!G8:G24=\"\"),\n      --(MMULT(--(DIMENSIONAMENTO!B8:H24<>\"\"),TRANSPOSE(COLUMN(DIMENSIONAMENTO!B8:H8)^0))>0)\n   )>0, 'CALC.'!B9,\n\n   OR(\n      AND(DIMENSIONAMENTO!C7='CALC.'!C43,\n          OR(COUNTIF(Equipmentos[Tensão Nominal '[V']],127)>0,\n             COUNTIF(Equipmentos[Tensão Nominal '[V']],380)>0)\n      ),\n      AND(DIMENSIONAMENTO!C7='CALC.'!C44,\n          COUNTIF(Equipmentos[Tensão Nominal '[V']],380)>0\n      ),\n      AND(DIMENSIONAMENTO!C7='CALC.'!C45,\n          COUNTIF(Equipmentos[Tensão Nominal '[V']],127)>0\n      ),\n      AND(DIMENSIONAMENTO!C7='CALC.'!C46,\n          COUNTIF(Equipmentos[Tensão Nominal '[V']],380)>0\n      )\n   ), 'CALC.'!B8,\n\n   TRUE, \"\"\n),\"\")\n))","v":""}]
[null,{"$f":"IFERROR(IF(OR('CALC.'!N11>1,'CALC.'!R11>1),'PRODUCT DATA'!B15,\"\"),\"\")","v":""},{"$f":"IF(\n    B11<>\"HV Junction-Box\",\n    \"\",\n    IFERROR(\n        IF(\n            OR(\n                AND(N($C$13)>0, N($C$13)/N($C$10)=3),\n                AND(N($C$15)>0, N($C$15)/N($C$10)=3)\n            ),\n            $C$10,\n            _xlfn.LET(\n                _xlpm.inversores, N($C$10),\n                _xlpm.entradas, N(VLOOKUP(B10,Inverters[#All],8,0)),\n                _xlpm.total_bat, N($C$13)+N($C$15),\n                MIN(INT(_xlpm.total_bat/2), _xlpm.entradas*_xlpm.inversores)\n            )\n        ),\n        \"\"\n    )\n)","v":""}]
[null,{"$f":"IF(SUM(Equipmentos[Quantidade])=0,\"\",IFERROR(_xlfn.IFS(E8='CALC.'!B5,'PRODUCT DATA'!B18,E8='CALC.'!B6,'PRODUCT DATA'!B16),\"\"))","v":""},{"$f":"IF(SUM(Equipmentos[Quantidade])=0,\"\",IF(B12=\"\",\"\",\"1.00\"))","v":""},null,"DICAS:",{"$nulls":3},{"$f":"IF(C11=\"\",\"\",'PRODUCT DATA'!H15)","v":""}]
[null,{"$f":"IF(B10=\"\",\"\",IF(SUM(Equipmentos[Quantidade])=0,\"\",IF(\n   COUNTA(DIMENSIONAMENTO!B9:H24)=0,\n   \"\",\n   _xlfn.IFNA(IF('CALC.'!N12/C10<5,'PRODUCT DATA'!J15,\"\"),\"\")\n)))","v":"EP5"},{"$f":"IF(SUM(Equipmentos[Quantidade])=0,\"\",IF(\n   COUNTA(DIMENSIONAMENTO!B9:H24)=0,\n   \"\",\n   _xlfn.IFNA(IF(B13=\"\",\"\",'CALC.'!N14),\"\")\n))","v":1},null,{"$f":"IF(SUM(Equipmentos[Quantidade])=0,\"\",IF(\n   OR(\n      B10=\"ERRO\",\n      'CALC.'!N14>'CALC.'!N12,\n      'CALC.'!R14>'CALC.'!R12,\n      'CALC.'!H68>'CALC.'!H65,\n      'CALC.'!G68<>'CALC.'!G65\n   ),\n   'CALC.'!B18,\n   IF(\n      SUM(Equipmentos[Quantidade])=0,\n      \"\",\n      IF(\n         COUNTA(DIMENSIONAMENTO!B9:H24)=0,\n         \"\",\n         _xlfn.IFNA(\n            _xlfn.IFS(\n               C18>=F22, 'CALC.'!B16,\n               C18>=F18, 'CALC.'!B17\n            ),\n            \"\"\n         )\n      )\n   )\n))","v":""}]
[null,{"$f":"IF(B13<>\"\",\"OU\",\"\")","v":"OU"}]
[null,{"$f":"IF(B10=\"\",\"\",IF(SUM(Equipmentos[Quantidade])=0,\"\",IF(\n   COUNTA(DIMENSIONAMENTO!B9:H24)=0,\n   \"\",\n   _xlfn.IFNA('PRODUCT DATA'!J16,\"\")\n)))","v":"EP11"},{"$f":"IF(B10=\"\",\"\",IF(SUM(Equipmentos[Quantidade])=0,\"\",IF(\nCOUNTA(DIMENSIONAMENTO!B9:H24)=0,\n\"\",\n_xlfn.IFNA('CALC.'!R14,\"\")\n)))","v":1},{"$nulls":5},{"$f":"IF(B13=\"\",\"\",VLOOKUP(B13,'PRODUCT DATA'!J14:R19,9,0))","v":{"$error":"#VALUE!"}},{"$nulls":3},{"$f":"IF(B15=\"\",\"\",VLOOKUP(B15,'PRODUCT DATA'!J14:R19,9,0))","v":{"$error":"#VALUE!"}}]
[{"$nulls":4},"Potência Alcançada (Inversor) [kW]",{"$f":"IF(SUM(Equipmentos[Quantidade])=0,\"\",IFERROR(VLOOKUP(B10,Inverters[#All],MATCH(Inverters[[#Headers],[Max Power EPS '[W']]],Inverters[#Headers],0),FALSE)*C10/1000*VLOOKUP(B10,Inverters[#All],6,0),\"\"))","v":{"v":5.529,"d":"5.53"}}]
[{"$nulls":10},{"$f":"B14","v":"OU"}]
[null,"Potência Necessária (kW)",{"$f":"IF(SUM(Equipmentos[Quantidade])=0,\"\",IF(COUNTA(DIMENSIONAMENTO!B9:H24)=0,\"\",DIMENSIONAMENTO!I26))","v":{"v":4.988,"d":"4.99"}},null,"Potência Alcançada EP5 [kW]",{"$f":"IF(C13=\"\",\"\",'CALC.'!N9)","v":5.18}]
[null,"Autonomia Desejada [h]",{"$f":"IF(SUM(Equipmentos[Quantidade])=0,\"\",IF(COUNTA(DIMENSIONAMENTO!B9:H24)=0,\"\",DIMENSIONAMENTO!C6))","v":2},null,"Autonomia Alcançada (EP5 - plena carga) [h]",{"$f":"IF(C13=\"\",\"\",F20*C19/C20)","v":{"v":2.7831378299120235,"d":"2.78"}}]
[null,"Capacidade Necessária (kWh)",{"$f":"IF(SUM(Equipmentos[Quantidade])=0,\"\",IF(\n   COUNTA(DIMENSIONAMENTO!B9:H24)=0,\n   \"\",\n   IF(\n      OR(DIMENSIONAMENTO!K26=\"\", DIMENSIONAMENTO!C6=\"\"),\n      \"\",\n      DIMENSIONAMENTO!K26/24*DIMENSIONAMENTO!C6\n   )\n))","v":{"v":3.1826666666666665,"d":"3.18"}},null,"Capacidade Alcançada (EP5) [kWh]",{"$f":"IFERROR(IF(C13=\"\",\"\",'CALC.'!M9),\"\")","v":{"v":4.4289,"d":"4.43"}}]
[]
[{"$nulls":4},"Potência Alcançada EP11 [kW]",{"$f":"IF(C15=\"\",\"\",IF(SUM(Equipmentos[Quantidade])=0,\"\",IF(\n   COUNTA(DIMENSIONAMENTO!B9:H24)=0,\n   \"\",\n   _xlfn.IFNA('CALC.'!R9,\"\")\n)))","v":10.36}]
[{"$nulls":4},"Autonomia Alcançada (EP11 - plena carga) [h]",{"$f":"IF(C15=\"\",\"\",IF(SUM(Equipmentos[Quantidade])=0,\"\",IF(\n   COUNTA(DIMENSIONAMENTO!B9:H24)=0,\n   \"\",\n   _xlfn.IFNA(F24*C19/C20,\"\")\n)))","v":{"v":5.566275659824047,"d":"5.57"}}]
[{"$nulls":4},"Capacidade Alcançada (EP11) [kWh]",{"$f":"IF(C15=\"\",\"\",IF(SUM(Equipmentos[Quantidade])=0,\"\",IF(\n   COUNTA(DIMENSIONAMENTO!B9:H24)=0,\n   \"\",\n   _xlfn.IFNA('CALC.'!Q9,\"\")\n)))","v":{"v":8.8578,"d":"8.86"}}]
[{"$nulls":6},"        C15=2"]
[{"$nulls":6},"    ),384*27*2,"]
[{"$nulls":6},"    AND("]
[{"$nulls":6},"        OR(B10=Dados!D9,B10=Dados!D10,B10=Dados!D11,B10=Dados!D12),"]
[{"$nulls":6},"        C15=3"]
[{"$nulls":6},"    ),384*27+384*50,"]
[{"$nulls":6},"    TRUE,VLOOKUP(C15/C10,BatCalc[#All],7,0)*C10"]
[{"$nulls":6},")"]

{"sheet":"Versions Log","index":6,"n_rows":11,"n_cols":5,"rows_kept":11,"hidden":true}
[]
[]
[null,null,"Version","Date","Upgrades"]
[null,null,2,{"v":45776,"d":"4577600.00%"}]
[null,null,3.1,{"v":45933,"d":"4593300.00%"}]
[null,null,4.2,{"v":45960,"d":"4596000.00%"}]
[null,null,"4.2.1",{"v":45972,"d":"4597200.00%"}]
[null,null,5.1,{"v":46010,"d":"4601000.00%"},"Removed H3-12\nIncluded H3-PRO-30\nIncluded PF calculations\nIncluded Peak Power Calculations\nAdded Battery Discharge Power Calculations\nAdded Hints\nRemoved Result from DIMENSIONAMENTO tab"]
[null,null,"5.2.1",{"v":46013,"d":"4601300.00%"},"Bug fix\nIn case of more then 4x EP5 per inverter, only EP11 will be recommended\nIncluded balance, so all inverter have the same amount of batteries"]
[null,null,"V5.4",{"v":46031,"d":"4603100.00%"},"Improvements on Battery Power Calculations\nImprovements on Battery Qty Calculations\nImprovements on Inverters Qty Calculations\nImprovements on Junction Box Qty Calculations\nIncluded Batteries and Inverters Efficiency"]
[null,null,5.5,null,"Included Logs\nIncluded EP6 and EP12 Data\nIncluded PV data of each inverter\nFixed issue when deleting a line from DIMENSIONAMENTO\nFixed Peak Power calculations\nWhen the DIMENSIONAMENTO tab is blanked or ,quantity is 0 results are blanked\nAdvice when PF is out of range\nIncluded Batteries Peak Power Calc."]